bitfinex-derivatives/quotes_BTCF0:USTF0_20210409
["timestamp","ask_amount","ask_price","bid_price","bid_amount"]
[1617996606517,1.51600451,58310.0,58301.0,0.30580713]
[1617996606716,1.7,58309.0,58301.0,0.30580713]
[1617996606920,1.0,58302.0,58300.0,0.30581194]
[1617996607118,0.2,58301.0,58300.0,0.30581194]
[1617996607318,0.2,58301.0,58300.0,0.27]
[1617996607319,1.33685,58301.0,58300.0,0.27]
[1617996607518,2.83685,58301.0,58300.0,0.27]
[1617996607720,2.83685,58301.0,58296.0,0.36698204]
[1617996607721,2.2861467,58301.0,58296.0,0.30582402]
[1617996607920,0.10725655,58300.0,58296.0,0.30582402]
[1617996608120,0.10725655,58300.0,58293.0,0.36698882]
[1617996608121,0.2,58299.0,58297.0,0.01]
[1617996608425,0.94863518,58298.0,58295.0,0.01]
[1617996608624,0.44402809,58296.0,58295.0,0.01]
[1617996608821,0.94859171,58296.0,58295.0,0.01]
[1617996609319,1.94859171,58296.0,58293.0,0.27]
[1617996609521,1.94859171,58296.0,58295.0,0.01]
[1617996609821,1.0,58296.0,58294.0,0.27]
[1617996610021,2.12412866,58296.0,58294.0,0.27]
[1617996610221,0.94789236,58295.0,58293.0,0.26]
[1617996610421,0.94789236,58295.0,58292.0,0.30542151]
[1617996610623,1.0,58296.0,58291.0,0.4891]
[1617996610821,1.0,58296.0,58293.0,0.27]
[1617996611022,0.50416276,58295.0,58292.0,0.27]
[1617996611324,0.44347463,58293.0,58292.0,0.27]
[1617996611822,0.55073118,58293.0,58292.0,0.27]
[1617996612323,0.55073118,58293.0,58292.0,0.2356]
[1617996612724,1.41709158,58293.0,58292.0,0.2356]
[1617996613123,0.91341007,58293.0,58292.0,0.2356]
[1617996613322,2.41683904,58293.0,58292.0,0.2356]
[1617996613623,1.91341007,58293.0,58292.0,0.2356]
[1617996615425,5.01131007,58293.0,58292.0,0.2356]
[1617996615726,5.20138807,58293.0,58292.0,0.2356]
[1617996616127,5.25228807,58293.0,58292.0,0.2356]
[1617996616329,5.75438611,58293.0,58292.0,0.2356]
[1617996619133,5.45228807,58293.0,58292.0,0.2356]
[1617996619432,5.45228807,58293.0,58278.0,0.30460403]
[1617996619631,5.45228807,58293.0,58277.0,0.30449617]
[1617996619632,2.35438807,58293.0,58277.0,0.30449617]
[1617996619831,2.35438807,58293.0,58276.0,0.30442198]
[1617996619832,2.6253,58278.0,58276.0,0.30442198]
[1617996620033,0.23273655,58278.0,58275.0,0.30442353]
[1617996620233,3.147,58277.0,58276.0,0.27]
[1617996620634,3.147,58277.0,58274.0,0.30442773]
[1617996620834,3.147,58277.0,58276.0,0.27]
[1617996621233,4.147,58277.0,58275.0,0.01]
[1617996621483,4.147,58277.0,58270.0,0.30434068]
[1617996621758,0.2,58276.0,58270.0,0.28624068]
[1617996621935,0.46671089,58271.0,58262.0,0.4537]
[1617996622135,1.90563961,58271.0,58262.0,0.4537]
[1617996622435,2.7164,58258.0,58252.0,0.035]
[1617996622789,2.7164,58258.0,58245.0,0.4461803]
[1617996622790,2.84507,58258.0,58245.0,0.35406299]
[1617996622948,0.2,58257.0,58254.0,0.2453]
[1617996623161,0.2,58257.0,58251.0,0.27]
[1617996623433,0.2,58257.0,58246.0,0.02]
[1617996623668,1.0,58255.0,58244.0,0.04]
[1617996623834,1.0,58255.0,58252.0,0.27]
[1617996624056,0.10725655,58253.0,58247.0,0.23]
[1617996624236,0.10725655,58253.0,58244.0,0.05]
[1617996624437,0.06127928,58252.0,58231.0,0.01]
[1617996624736,0.06127928,58252.0,58248.0,0.01]
[1617996624935,3.0194,58249.0,58246.0,3.2797]
[1617996625135,0.10725655,58253.0,58232.0,0.04]
[1617996625336,2.62635655,58253.0,58249.0,0.02]
[1617996625537,2.62635655,58253.0,58248.0,2.8834]
[1617996625937,2.62635655,58253.0,58249.0,0.23]
[1617996626138,2.62635655,58253.0,58249.0,0.36881]
[1617996627241,0.10725655,58253.0,58249.0,0.36881]
[1617996627440,0.10725655,58253.0,58252.0,3.6501]
[1617996627839,0.10725655,58253.0,58252.0,3.9201]
[1617996628054,0.10725655,58253.0,58252.0,4.02735655]
[1617996628263,0.10725655,58253.0,58252.0,5.02735655]
[1617996628464,0.43733658,58274.0,58252.0,5.02735655]
[1617996628741,0.4374738,58277.0,58252.0,5.02735655]
[1617996628940,2.7405,58278.0,58257.0,1.0]
[1617996629153,2.7405,58278.0,58255.0,1.0]
[1617996629349,2.7405,58278.0,58258.0,0.27]
[1617996629557,2.7405,58278.0,58252.0,3.75735655]
[1617996629558,2.7405,58278.0,58256.0,0.01]
[1617996629941,2.7405,58278.0,58266.0,0.10725655]
[1617996630345,2.7405,58278.0,58267.0,0.01]
[1617996630549,0.43758313,58279.0,58267.0,0.01]
[1617996630753,0.43758313,58279.0,58275.0,2.7285]
[1617996630959,0.43723971,58280.0,58275.0,2.86996]
[1617996631444,0.06126519,58281.0,58275.0,2.86996]
[1617996631642,0.06126109,58279.0,58275.0,2.86996]
[1617996632044,0.10725655,58276.0,58275.0,0.14146]
[1617996632242,0.10725655,58276.0,58275.0,3.34526]
[1617996632841,0.10725655,58276.0,58275.0,3.61526]
[1617996633944,0.10725655,58276.0,58275.0,0.51871655]
[1617996634244,3.08625655,58276.0,58275.0,0.51871655]
[1617996635545,3.08625655,58276.0,58275.0,0.37725655]
[1617996639052,3.08625655,58276.0,58275.0,0.27]
[1617996639256,3.18830655,58276.0,58275.0,0.27]
[1617996639551,3.18830655,58276.0,58271.0,0.27]
[1617996639751,3.18830655,58276.0,58275.0,0.27]
[1617996640250,3.18830655,58276.0,58271.0,0.27]
[1617996640451,3.08625655,58276.0,58275.0,0.27]
[1617996640652,3.08625655,58276.0,58271.0,0.27]
[1617996641069,3.08625655,58276.0,58275.0,0.27]
[1617996641269,3.08625655,58276.0,58270.0,2.8951]
[1617996641453,3.08625655,58276.0,58271.0,0.27]
[1617996641654,3.08625655,58276.0,58275.0,0.27]
[1617996641857,3.08625655,58276.0,58270.0,2.8951]
[1617996642057,3.08625655,58276.0,58275.0,0.10725655]
[1617996642457,3.08625655,58276.0,58275.0,0.37725655]
[1617996644159,0.10725655,58276.0,58275.0,0.37725655]
[1617996644359,0.10725655,58276.0,58275.0,0.50595655]
[1617996644560,0.10725655,58276.0,58275.0,3.95805655]
[1617996646565,0.10725655,58276.0,58275.0,0.50595655]
[1617996646865,2.88775655,58276.0,58275.0,0.50595655]
[1617996647066,2.88775655,58276.0,58275.0,0.37725655]
[1617996661783,3.24688398,58276.0,58275.0,0.37725655]
[1617996663485,3.68576022,58276.0,58275.0,0.37725655]
[1617996667186,2.88775655,58276.0,58275.0,0.37725655]
[1617996667586,3.24609659,58276.0,58275.0,0.37725655]
[1617996668888,3.68433633,58276.0,58275.0,0.37725655]
[1617996669789,3.24609659,58276.0,58275.0,0.37725655]
[1617996671490,3.68458397,58276.0,58275.0,0.37725655]
[1617996672593,3.24609659,58276.0,58275.0,0.37725655]
[1617996672939,0.35834004,58276.0,58275.0,2.87265655]
[1617996673385,0.35834004,58276.0,58275.0,3.87265655]
[1617996673760,0.43925797,58284.0,58275.0,4.17752711]
[1617996674169,0.43983432,58286.0,58279.0,0.3048881]
[1617996674295,0.43983432,58286.0,58285.0,0.10725655]
[1617996674597,0.44004294,58289.0,58285.0,0.25599655]
[1617996674895,0.44004294,58289.0,58285.0,1.26599655]
[1617996675095,0.44004294,58289.0,58288.0,1.0]
[1617996675295,0.5000247,58294.0,58288.0,1.0]
[1617996675607,0.10725655,58297.0,58288.0,1.27]
[1617996675608,0.43992729,58289.0,58288.0,1.27]
[1617996675796,0.43999634,58290.0,58288.0,0.27]
[1617996675998,0.44005969,58291.0,58289.0,1.0]
[1617996676397,0.44005969,58291.0,58290.0,0.01]
[1617996677996,0.43994952,58292.0,58290.0,0.01]
[1617996678297,0.43994952,58292.0,58291.0,0.10725655]
[1617996678614,0.43994952,58292.0,58291.0,0.37725655]
[1617996681004,0.43973466,58293.0,58291.0,0.37725655]
[1617996683609,0.43968529,58294.0,58291.0,0.37725655]
[1617996684008,0.43981533,58293.0,58291.0,0.37725655]
[1617996684808,0.43982916,58294.0,58291.0,0.37725655]
[1617996685008,0.10725655,58297.0,58291.0,0.37725655]
[1617996685009,0.44001392,58293.0,58291.0,0.37725655]
[1617996685310,0.43997821,58292.0,58291.0,0.37725655]
[1617996688213,0.44017878,58293.0,58291.0,0.37725655]
[1617996689314,0.44012294,58292.0,58291.0,0.37725655]
[1617996689516,0.44015977,58293.0,58291.0,3.19675655]
[1617996689715,0.44015977,58293.0,58291.0,4.19675655]
[1617996689916,0.44020006,58294.0,58292.0,1.0]
[1617996690117,0.50026422,58300.0,58292.0,1.0]
[1617996690318,0.50032718,58301.0,58299.0,0.10725655]
[1617996690517,0.50032718,58301.0,58299.0,0.24711655]
[1617996690718,0.50032718,58301.0,58300.0,0.01]
[1617996691119,0.94062478,58301.0,58300.0,0.01]
[1617996692620,0.4402976,58301.0,58300.0,0.01]
[1617996693223,0.10725655,58303.0,58300.0,0.01]
[1617996693623,0.44033216,58301.0,58300.0,0.01]
[1617996695724,0.44033216,58301.0,58300.0,1.01]
[1617996696425,0.10725655,58303.0,58300.0,1.01]
[1617996696925,0.4408714,58301.0,58300.0,1.01]
[1617996697626,0.44092615,58302.0,58301.0,1.0]
[1617996697826,0.44092615,58302.0,58300.0,1.01]
[1617996698026,0.44092615,58302.0,58301.0,2.8408]
[1617996698627,0.44092615,58302.0,58301.0,3.8408]
[1617996698827,0.4410148,58303.0,58301.0,3.8408]
[1617996699029,0.44104098,58304.0,58301.0,0.26]
[1617996699229,0.44104098,58304.0,58301.0,3.9404]
[1617996699428,0.44104098,58304.0,58302.0,1.0]
[1617996699629,0.44115865,58305.0,58303.0,1.0]
[1617996700031,0.4412611,58307.0,58304.0,1.01]
[1617996700459,0.44129294,58309.0,58306.0,0.10725655]
[1617996700841,0.44129294,58309.0,58306.0,1.10725655]
[1617996701130,0.44129294,58309.0,58308.0,3.7515]
[1617996701539,0.44129294,58309.0,58308.0,4.0215]
[1617996701831,0.44136613,58310.0,58308.0,4.0215]
[1617996702230,0.44136613,58310.0,58308.0,3.0215]
[1617996702431,0.44136613,58310.0,58309.0,1.0]
[1617996702830,0.44136613,58310.0,58309.0,1.27]
[1617996703331,0.035,58314.0,58309.0,1.27]
[1617996703332,0.44128374,58312.0,58309.0,1.27]
[1617996703632,0.44128374,58312.0,58311.0,1.0]
[1617996703834,0.44128374,58312.0,58311.0,1.14557]
[1617996704033,0.44128374,58312.0,58311.0,1.41557]
[1617996704436,0.44134106,58313.0,58311.0,1.41557]
[1617996705335,0.035,58314.0,58312.0,3.4191]
[1617996705635,0.035,58314.0,58313.0,0.27]
[1617996706035,0.47618059,58314.0,58313.0,0.27]
[1617996706435,0.47618059,58314.0,58313.0,0.37725655]
[1617996707939,0.035,58314.0,58313.0,0.37725655]
[1617996714348,3.2055,58314.0,58313.0,0.37725655]
[1617996715450,3.647,58314.0,58313.0,0.37725655]
[1617996715750,0.4765,58314.0,58313.0,0.37725655]
[1617996716551,0.6357835,58314.0,58313.0,0.37725655]
[1617996727868,1.13849616,58314.0,58313.0,0.37725655]
[1617996728668,3.62309616,58314.0,58313.0,0.37725655]
[1617996729569,3.1203835,58314.0,58313.0,0.37725655]
[1617996732072,0.6357835,58314.0,58313.0,0.37725655]
[1617996732572,0.4765,58314.0,58313.0,3.00345655]
[1617996734275,0.4765,58314.0,58313.0,4.00345655]
[1617996735523,0.4765,58314.0,58313.0,4.60995655]
[1617996736605,0.035,58314.0,58313.0,4.60995655]
[1617996736823,0.44377218,58316.0,58313.0,4.60995655]
[1617996737181,0.44385948,58317.0,58315.0,1.0]
[1617996737581,0.44393674,58318.0,58316.0,0.27]
[1617996737780,0.44393674,58318.0,58316.0,1.27]
[1617996737982,0.50445981,58324.0,58316.0,1.27]
[1617996737983,0.44394183,58319.0,58316.0,1.0]
[1617996738180,0.44394183,58319.0,58315.0,0.01]
[1617996738381,0.44394183,58319.0,58318.0,1.0]
[1617996738881,0.44394183,58319.0,58318.0,1.01]
[1617996739082,0.44421264,58322.0,58318.0,1.01]
[1617996739282,0.4448915,58324.0,58318.0,0.31473129]
[1617996739483,0.4448915,58324.0,58320.0,0.30473015]
[1617996739882,0.4448915,58324.0,58323.0,1.0]
[1617996740082,0.4448915,58324.0,58323.0,1.10544]
[1617996740284,0.4448915,58324.0,58323.0,1.37544]
[1617996740685,0.4448915,58324.0,58323.0,1.48269655]
[1617996740884,3.3642915,58324.0,58323.0,1.48269655]
[1617996741185,3.53136404,58324.0,58323.0,1.48269655]
[1617996741986,0.61196404,58324.0,58323.0,1.48269655]
[1617996742185,0.61196404,58324.0,58323.0,3.99819655]
[1617996742186,0.4448915,58324.0,58323.0,3.99819655]
[1617996742487,0.9500233,58324.0,58323.0,3.99819655]
[1617996746590,0.9500233,58324.0,58323.0,2.99819655]
[1617996746891,0.9500233,58324.0,58323.0,3.99819655]
[1617996753597,0.9500233,58324.0,58323.0,2.99819655]
[1617996753798,0.9500233,58324.0,58323.0,3.99819655]
[1617996754799,0.9500233,58324.0,58323.0,2.99819655]
[1617996758704,0.81587487,58337.0,58323.0,2.99819655]
[1617996758903,0.81587487,58337.0,58336.0,0.10725655]
[1617996759304,2.33468475,58337.0,58336.0,0.37725655]
[1617996759505,2.33468475,58337.0,58336.0,0.37623628]
[1617996761406,1.62606643,58337.0,58336.0,0.37623628]
[1617996762805,1.62606643,58337.0,58336.0,4.07153628]
[1617996764035,1.62606643,58337.0,58336.0,4.21289628]
[1617996769413,1.62606643,58337.0,58336.0,4.07153628]
[1617996769814,1.62606643,58337.0,58336.0,4.07051603]
[1617996773917,0.10725655,58337.0,58336.0,4.07051603]
[1617996774120,1.62708274,58337.0,58336.0,4.07051603]
[1617996780022,1.62708274,58337.0,58336.0,4.06949578]
[1617996786032,2.33669736,58337.0,58336.0,4.06949578]
[1617996787133,2.33669736,58337.0,58336.0,0.37419578]
[1617996787335,2.45560736,58337.0,58336.0,0.37419578]
[1617996787534,5.66310736,58337.0,58336.0,0.37419578]
[1617996787933,5.81988816,58337.0,58336.0,0.37419578]
[1617996788934,2.61238816,58337.0,58336.0,0.37419578]
[1617996789135,2.61238816,58337.0,58336.0,3.55409578]
[1617996789335,2.45560736,58337.0,58336.0,0.37419578]
[1617996789536,2.45560736,58337.0,58336.0,0.27]
[1617996789935,2.45560736,58337.0,58315.0,0.36673797]
[1617996789936,5.16440736,58337.0,58319.0,0.27]
[1617996790135,4.96440736,58337.0,58319.0,0.27]
[1617996790440,2.73496655,58337.0,58336.0,0.27]
[1617996790635,4.96507851,58337.0,58320.0,0.26]
[1617996790839,0.95278656,58321.0,58315.0,1.30569844]
[1617996791041,1.04829656,58321.0,58320.0,0.10725655]
[1617996791238,2.96881,58321.0,58320.0,0.10725655]
[1617996791437,4.08685141,58321.0,58320.0,0.11725655]
[1617996791638,4.65438075,58321.0,58320.0,0.11725655]
[1617996796440,1.78108075,58321.0,58320.0,0.11725655]
[1617996796741,1.61580356,58321.0,58320.0,0.11725655]
[1617996797541,1.61580356,58321.0,58320.0,3.31415655]
[1617996805449,1.62024932,58321.0,58320.0,3.31415655]
[1617996808955,0.09551,58321.0,58320.0,3.31415655]
[1617996809154,0.10725655,58323.0,58320.0,3.31415655]
[1617996809355,1.52519515,58321.0,58320.0,3.31415655]
[1617996809553,1.67532515,58321.0,58320.0,3.31415655]
[1617996814159,1.67532515,58321.0,58320.0,0.11725655]
[1617996814760,4.83992515,58321.0,58320.0,0.11725655]
[1617996815161,5.01376984,58321.0,58320.0,0.11725655]
[1617996817862,5.01376984,58321.0,58320.0,0.01]
[1617996818265,5.01376984,58321.0,58314.0,0.27]
[1617996818665,0.95606458,58315.0,58312.0,0.01]
[1617996818965,0.95587143,58313.0,58311.0,0.9195]
[1617996819165,0.10725655,58312.0,58311.0,0.9195]
[1617996819364,1.06307286,58312.0,58311.0,0.9195]
[1617996819565,1.06307286,58312.0,58311.0,1.1895]
[1617996821065,1.06307286,58312.0,58311.0,1.29675655]
[1617996825771,1.06307286,58312.0,58311.0,4.20995655]
[1617996827489,0.10725655,58312.0,58311.0,4.20995655]
[1617996827974,1.06307371,58312.0,58311.0,4.20995655]
[1617996829777,0.95581716,58312.0,58311.0,4.20995655]
[1617996830277,0.95581716,58312.0,58311.0,1.29675655]
[1617996830676,4.65561716,58312.0,58311.0,1.29675655]
[1617996831278,4.82223766,58312.0,58311.0,1.29675655]
[1617996832978,4.82223766,58312.0,58311.0,1.6022523]
[1617996834279,1.12243766,58312.0,58311.0,1.6022523]
[1617996834580,1.12243766,58312.0,58311.0,4.3439523]
[1617996834780,0.95581716,58312.0,58311.0,4.3439523]
[1617996835282,0.95581716,58312.0,58311.0,5.3439523]
[1617996835481,0.44741027,58312.0,58311.0,5.71056566]
[1617996838183,0.44741027,58312.0,58311.0,4.71056566]
[1617996838384,0.44741027,58312.0,58311.0,5.71056566]
[1617996839885,0.44741027,58312.0,58311.0,5.82895566]
[1617996841086,0.44741027,58312.0,58311.0,5.71056566]
[1617996843991,0.44741027,58312.0,58311.0,4.71056566]
[1617996844394,0.95667484,58312.0,58311.0,4.71056566]
[1617996845092,0.95667484,58312.0,58311.0,1.96886566]
[1617996845292,4.50157484,58312.0,58311.0,1.96886566]
[1617996845692,4.67566217,58312.0,58311.0,1.96886566]
[1617996846293,4.67566217,58312.0,58311.0,2.96886566]
[1617996847195,1.13076217,58312.0,58311.0,2.96886566]
[1617996847395,0.95667484,58312.0,58311.0,2.96886566]
[1617996848196,0.95667484,58312.0,58311.0,5.64836566]
[1617996849795,0.95667484,58312.0,58311.0,5.34286991]
[1617996850096,3.0818,58317.0,58311.0,4.97625655]
[1617996850296,0.95822887,58312.0,58311.0,4.64879644]
[1617996850497,0.95822887,58312.0,58311.0,3.97625655]
[1617996850697,0.95822887,58312.0,58311.0,4.97625655]
[1617996850897,0.95822887,58312.0,58311.0,4.64864618]
[1617996851097,0.95822887,58312.0,58311.0,5.64864618]
[1617996851298,0.95822887,58312.0,58311.0,4.64864618]
[1617996854000,0.95822887,58312.0,58311.0,5.64864618]
[1617996854401,0.44853917,58312.0,58311.0,5.64864618]
[1617996854603,0.44853917,58312.0,58311.0,2.96914618]
[1617996855502,0.44853917,58312.0,58311.0,3.41705956]
[1617996855701,0.44853917,58312.0,58311.0,3.55244956]
[1617996856705,0.44839832,58313.0,58311.0,3.55244956]
[1617996857003,0.44839463,58314.0,58311.0,2.55244956]
[1617996857203,0.44839463,58314.0,58312.0,1.0]
[1617996857404,0.44839463,58314.0,58313.0,1.11747772]
[1617996857604,0.44831203,58315.0,58313.0,1.44868677]
[1617996857804,0.44831203,58315.0,58313.0,2.44868677]
[1617996858103,0.44831203,58315.0,58314.0,1.27019488]
[1617996858504,0.44831203,58315.0,58314.0,2.44838161]
[1617996859104,0.44822392,58316.0,58314.0,2.44838161]
[1617996859504,0.44815611,58317.0,58315.0,1.17778947]
[1617996860004,0.44815611,58317.0,58316.0,0.27]
[1617996860205,0.44815611,58317.0,58316.0,2.38643745]
[1617996860704,0.44808066,58318.0,58316.0,2.00107003]
[1617996861105,0.44808066,58318.0,58317.0,0.73096275]
[1617996861418,0.44808066,58318.0,58317.0,1.8382193]
[1617996861613,0.44808066,58318.0,58317.0,2.1082193]
[1617996873321,0.44776164,58319.0,58317.0,2.1082193]
[1617996873618,0.44776164,58319.0,58318.0,0.73018548]
[1617996874045,0.44776164,58319.0,58318.0,2.00018548]
[1617996874219,0.44772558,58320.0,58318.0,2.00018548]
[1617996874619,0.17480377,58336.0,58319.0,0.73001358]
[1617996874620,0.44771663,58321.0,58319.0,0.73001358]
[1617996875020,0.44771663,58321.0,58320.0,0.27]
[1617996875218,0.44771663,58321.0,58320.0,1.27]
[1617996875520,0.44771663,58321.0,58320.0,1.99999132]
[1617996879022,0.44771663,58321.0,58320.0,1.63520044]
[1617996879424,0.44771663,58321.0,58320.0,1.99963167]
[1617996880326,0.44771663,58321.0,58320.0,1.63520044]
[1617996881025,0.44761099,58322.0,58320.0,1.99944477]
[1617996881227,0.44761099,58322.0,58320.0,0.99944477]
[1617996881426,0.44761099,58322.0,58321.0,1.0]
[1617996881625,0.44761099,58322.0,58321.0,1.09376]
[1617996881826,0.44758452,58323.0,58321.0,2.09266447]
[1617996882239,0.44758452,58323.0,58322.0,0.36471681]
[1617996882525,0.44758452,58323.0,58322.0,1.36471681]
[1617996882742,0.44758452,58323.0,58322.0,1.63471681]
[1617996882937,0.44759888,58324.0,58322.0,1.99888935]
[1617996883345,0.44759888,58324.0,58323.0,0.10725655]
[1617996883638,0.4475727,58325.0,58323.0,1.47187829]
[1617996883827,0.4475727,58325.0,58323.0,0.74187829]
[1617996884027,0.50863738,58330.0,58324.0,0.36465178]
[1617996884227,0.50863738,58330.0,58324.0,1.36465178]
[1617996884528,0.50863738,58330.0,58329.0,3.5608]
[1617996884928,0.95619953,58330.0,58329.0,3.8308]
[1617996885329,0.44756215,58330.0,58329.0,3.93805655]
[1617996886430,0.44756215,58330.0,58329.0,4.2413116]
[1617996886931,0.44749222,58333.0,58329.0,4.60488041]
[1617996887429,0.44749222,58333.0,58329.0,3.60488041]
[1617996887631,0.44749222,58333.0,58332.0,1.0]
[1617996887829,0.44748904,58334.0,58332.0,1.0]
[1617996888032,0.44748904,58334.0,58332.0,0.27]
[1617996888231,0.44750333,58333.0,58332.0,0.6341741]
[1617996888431,0.44750333,58333.0,58332.0,0.3641741]
[1617996888632,0.44750333,58333.0,58332.0,0.3029747]
[1617996888832,0.44750333,58333.0,58332.0,0.5729747]
[1617996889036,0.44739737,58335.0,58332.0,1.93637598]
[1617996889435,0.44730442,58336.0,58334.0,0.30282139]
[1617996889634,0.44730442,58336.0,58334.0,0.40857139]
[1617996889834,0.44730442,58336.0,58335.0,1.27]
[1617996891438,0.44730442,58336.0,58335.0,1.37725655]
[1617996893442,0.44730442,58336.0,58335.0,4.61715655]
[1617996894743,0.5081262,58342.0,58335.0,4.61715655]
[1617996894744,0.4470314,58337.0,58335.0,4.61715655]
[1617996895344,0.4470314,58337.0,58335.0,3.61715655]
[1617996895544,0.4470314,58337.0,58336.0,1.0]
[1617996895846,0.4470314,58337.0,58336.0,1.27]
[1617996896484,0.4470314,58337.0,58336.0,4.5128]
[1617996896677,0.44694845,58340.0,58336.0,4.5128]
[1617996897046,0.44694845,58340.0,58336.0,3.81516474]
[1617996897447,0.44688512,58341.0,58339.0,1.0]
[1617996897848,0.44688512,58341.0,58336.0,3.81516474]
[1617996897849,0.44688512,58341.0,58340.0,0.27]
[1617996898349,0.44688512,58341.0,58340.0,1.0]
[1617996898548,0.5078029,58347.0,58340.0,1.27]
[1617996898549,0.44681129,58342.0,58340.0,1.27]
[1617996898848,0.44681129,58342.0,58340.0,1.0]
[1617996899149,0.44681129,58342.0,58336.0,3.54516474]
[1617996899150,0.5078029,58347.0,58341.0,0.27]
[1617996899446,0.44676164,58342.0,58341.0,1.37725655]
[1617996899650,0.50766984,58348.0,58341.0,0.10725655]
[1617996899848,0.50766984,58348.0,58342.0,0.27]
[1617996900050,0.50766984,58348.0,58341.0,1.11725655]
[1617996900249,0.44675729,58343.0,58341.0,0.10725655]
[1617996900649,0.44675729,58343.0,58342.0,1.27]
[1617996902153,0.44668645,58344.0,58342.0,1.27]
[1617996902552,0.44668645,58344.0,58342.0,0.27]
[1617996902954,0.44668645,58344.0,58343.0,1.0]
[1617996903358,0.44668645,58344.0,58343.0,1.27]
[1617996904058,0.44669364,58345.0,58343.0,1.27]
[1617996904459,0.44669364,58345.0,58343.0,0.27]
[1617996904659,0.44669364,58345.0,58344.0,1.0]
[1617996905258,0.44669364,58345.0,58344.0,1.01]
[1617996906160,0.44662115,58346.0,58344.0,1.01]
[1617996906760,0.44658901,58347.0,58344.0,0.01]
[1617996907060,0.44658901,58347.0,58345.0,1.0]
[1617996907259,0.44658901,58347.0,58342.0,0.27]
[1617996907458,0.44658901,58347.0,58346.0,1.0]
[1617996907759,0.44658901,58347.0,58346.0,1.10046]
[1617996907959,0.44658901,58347.0,58346.0,1.37046]
[1617996909261,0.44658901,58347.0,58346.0,4.86936]
[1617996914869,0.50747117,58351.0,58346.0,4.86936]
[1617996915271,0.44665315,58347.0,58346.0,3.86936]
[1617996915974,0.44665315,58347.0,58346.0,4.86936]
[1617996929686,4.24255315,58347.0,58346.0,0.37046]
[1617996929886,4.75057804,58347.0,58346.0,0.27]
[1617996930088,4.8965338,58347.0,58346.0,0.27]
[1617996930286,4.8965338,58347.0,58342.0,0.27]
[1617996930287,5.0965338,58347.0,58342.0,0.27]
[1617996930587,5.0965338,58347.0,58346.0,0.27]
[1617996930989,5.0965338,58347.0,58342.0,0.27]
[1617996931189,5.0965338,58347.0,58346.0,0.27]
[1617996931391,3.7959,58347.0,58346.0,0.27]
[1617996931591,1.05823436,58347.0,58342.0,0.27]
[1617996931793,2.81325655,58343.0,58341.0,0.10725655]
[1617996932090,3.768687,58343.0,58342.0,0.27]
[1617996932291,3.91476673,58343.0,58342.0,0.27]
[1617996946405,3.77066726,58343.0,58342.0,0.27]
[1617996951011,1.06466726,58343.0,58342.0,0.27]
[1617996951710,1.06466726,58343.0,58342.0,3.3435]
[1617996954016,0.10725655,58343.0,58342.0,3.3435]
[1617996954317,1.06460376,58343.0,58342.0,3.3435]
[1617996956321,1.26460376,58343.0,58342.0,0.27]
[1617996956625,4.36650376,58343.0,58342.0,0.27]
[1617996957524,4.51507074,58343.0,58342.0,0.27]
[1617996958325,4.31507074,58343.0,58342.0,0.27]
[1617996961225,4.51507074,58343.0,58342.0,0.27]
[1617996961625,6.01507074,58343.0,58342.0,0.27]
[1617996961827,6.58532313,58343.0,58342.0,0.27]
[1617996962028,6.88896726,58343.0,58342.0,0.27]
[1617996962226,6.88896726,58343.0,58335.0,0.10725655]
[1617996962227,6.88896726,58343.0,58335.0,0.37725655]
[1617996962527,6.88896726,58343.0,58336.0,0.26]
[1617996962727,5.38896726,58343.0,58336.0,0.26]
[1617996962930,5.38896726,58343.0,58335.0,0.10725655]
[1617996963130,0.50918009,58337.0,58336.0,0.27]
[1617996963432,0.95727078,58337.0,58336.0,0.27]
[1617996963631,1.15727078,58337.0,58336.0,3.5165]
[1617996963931,1.26452733,58337.0,58336.0,3.5165]
[1617996964332,1.06452733,58337.0,58336.0,3.5165]
[1617996964730,1.26452733,58337.0,58336.0,3.5165]
[1617996965732,1.26452733,58337.0,58336.0,0.27]
[1617996965934,4.51772733,58337.0,58336.0,0.27]
[1617996966331,4.67464019,58337.0,58336.0,0.27]
[1617996968034,5.24462571,58337.0,58336.0,0.27]
[1617996971236,5.04462571,58337.0,58336.0,0.27]
[1617996971637,4.47464019,58337.0,58336.0,0.27]
[1617996973037,1.22144019,58337.0,58336.0,0.27]
[1617996973239,1.06452733,58337.0,58336.0,3.10456]
[1617996976641,0.55534724,58337.0,58336.0,3.10456]
[1617996978350,0.44809069,58337.0,58336.0,3.10456]
[1617996978842,0.44809069,58337.0,58336.0,4.10456]
[1617996979342,0.44809069,58337.0,58336.0,4.4045996]
[1617996985747,0.4476724,58338.0,58336.0,4.4045996]
[1617996986148,0.4476724,58338.0,58337.0,0.29948975]
[1617996986549,0.4476724,58338.0,58337.0,1.56948975]
[1617996989651,0.44771622,58339.0,58337.0,0.92835054]
[1617996989853,0.44772374,58338.0,58337.0,0.56948975]
[1617996990450,0.44772374,58338.0,58337.0,1.56948975]
[1617996997856,0.44772374,58338.0,58337.0,0.56948975]
[1617996998058,0.44772374,58338.0,58337.0,1.27]
[1617997000259,0.44772374,58338.0,58337.0,1.37667]
[1617997000662,0.44772374,58338.0,58337.0,1.67581932]
[1617997002562,0.44772374,58338.0,58337.0,1.56914932]
[1617997002763,0.44772374,58338.0,58337.0,1.27]
[1617997004063,0.44772374,58338.0,58337.0,1.41301]
[1617997004463,0.44772374,58338.0,58337.0,1.71197026]
[1617997005265,0.44763565,58339.0,58337.0,1.71197026]
[1617997005665,0.4476132,58338.0,58337.0,0.71197026]
[1617997005865,0.4476132,58338.0,58337.0,0.56896026]
[1617997006266,0.4476132,58338.0,58337.0,1.56896026]
[1617997009973,0.4476132,58338.0,58337.0,1.27]
[1617997012075,0.4476132,58338.0,58337.0,1.56917558]
[1617997012275,0.4475398,58339.0,58337.0,1.56917558]
[1617997012478,0.4475398,58339.0,58338.0,3.78321305]
[1617997012886,0.4475398,58339.0,58338.0,4.05321305]
[1617997013076,0.4475398,58339.0,58338.0,5.05321305]
[1617997013278,0.4475398,58339.0,58338.0,4.7541]
[1617997013784,0.4475398,58339.0,58338.0,0.27]
[1617997013993,4.0627398,58339.0,58338.0,0.27]
[1617997014204,4.16999635,58339.0,58337.0,0.27]
[1617997014396,4.26472635,58339.0,58337.0,0.27]
[1617997014580,0.60790872,58338.0,58337.0,0.27]